Workbook

Sheet Bag calcs
A1: Bag volume calculation, and gas permeability
A2: bgc | J2: SS provided free by David William House, author,
B3: Bags are made from two flat sheets of poly or similar. (Like a ziplock bag. See picture below.) | J3: The Complete Biogas Handbook (click for link)
J4: Consulting @ www.vahidbiogas.com
B5: Enter dimensions in feet:
B6: Bag length | C6: 30 | D6: ft | E6: =bgc_bagLength_Ft*cnv_ftToM -> 9.144 | F6: m
B7: Bag width | C7: 50 | D7: ft | E7: =bgc_bagWidth_Ft*cnv_ftToM -> 15.24 | F7: m
B9: =CONCATENATE("Est. vol of bag will be ",ROUND(bgc_bagVolAsZiplockBagEst_cuFt,1)," cu ft, or ",ROUND(bgc_bagVolAsZiplockBagEst_cuM,1)," cu m.") -> Est. vol of bag will be 4906 cu ft, or 138.9 cu m.
B10: =CONCATENATE("Total gas loss from bag will be ",ROUND(bgc_lossBiogas_OneLayerBag_FtCuPerDa,1)," cu ft/da, or ",ROUND(bgc_lossBiogas_OneLayerBag_LPerDa,0)," l/da, ",ROUND((C48/SUM(C48:C49))*100,1),"% methane.") -> Total gas loss from bag will be 11.3 cu ft/da, or 321 l/da, 34.8% methane.
B16: Vol of a bag made from two rectangles sealed together on the edges, then filled with gas, is mathematically
B17: challenging to calculate, particularly when one considers real world issues such as flattening caused by gravity…
B18: Therefore in this worksheet, we take an empirical approach advocated by several folks on the I-net, which is to
B19: calculate the bag vol as if the material were making a cylinder, then to apply a factor to that. To illustrate:
B23: Thus in the formula as shown, "0.35" is that factor. However,
B24: several folks have advocated a factor of 0.2055 as providing a practical maximum.
B26: 4π: | C26: =4*PI() -> 12.56637061 | D26: #
B27: (length) H: | C27: =bgc_bagLength_Ft -> 30 | D27: ft | E27: =bgc_bagHeight_Ft*cnv_ftToM -> 9.144 | F27: m
B28: (twice the width) C: | C28: =bgc_bagWidth_Ft*2 -> 100 | D28: ft | E28: =bgc_bagCircum_Ft*cnv_ftToM -> 30.48 | F28: m
B29: "volume factor": | C29: 0.2055 | D29: #
B30: C2/4π: | C30: =(bgc_bagCircum_Ft^2)/bgc__4Pi -> 795.7747155 | D30: ft | E30: =bgc_cSqOvr4Pi_Ft*cnv_ftToM -> 242.5521333 | F30: m
B31: (C2/4π) * H: | C31: =bgc_cSqOvr4Pi_Ft*bgc_bagHeight_Ft -> 23873.24146 | D31: ft3 vol | E31: =bgc_bagVolAsCylinder_cuFt*cnv_ftCuToMCu -> 676.0149975 | F31: m3 vol
B32: above times "factor": | C32: =bgc_bagVolAsCylinder_cuFt*bgc_volFactor -> 4905.951121 | D32: ft3 vol | E32: =bgc_bagVolAsZiplockBagEst_cuFt*cnv_ftCuToMCu -> 138.921082 | F32: m3 vol | G32: =bgc_bagVolAsZiplockBagEst_cuFt*cnv_ftCuToGal -> 36699.06293 | H32: gal
B34: Reference:
B35: http://en.wikipedia.org/wiki/Paper_bag_problem
B37: Permeability, likewise, is mathematically challenging to calculate. For example, it varies as a factor of temperature, manufacturing
B38: process, exact chemical formula of the plastic, and so on. Likewise, no one reports on permeability where one membrane
B39: (gas bag) is inside another. We assume a one layer bag, and will not factor in temp, etc.
J40: (I assume that in the case of bag-in-bag, the permeability would fall dramatically, since (taking the example of only two bags) the inside bag would leak into the outside bag, which would then leak to the air. If that is a correct picture, then the overall permeability would be perminside times permoutside, or the square of the permeability calculated for one bag. (Surely in any case it would not be greater than for one bag.) However, given that the inside bag will leak into the outside bag, so at some point the inside bag will press against the outside bag. Thus it may be good to make provision for a valve to vent the space between (either to the air or to return the collected gas to the inside bag).
B41: Thus the approach taken here is to calculate a kind of general worst case, using generic LDPE.
B42: Note that the permeability of CO2 is different than that for CH4.
B44: Bag surface: | C44: =bgc_bagLength_Ft*bgc_bagWidth_Ft -> 1500 | D44: ft2 | E44: =bgc_bagLength_M*bgc_bagWidth_M -> 139.35456 | F44: m2
B45: Permeability of methane | C45: =(bgc_perme_CH4ThruPolyEth_MlPerSqMPerDa/1000)*cnv_lToFtCu/cnv_mSqToFtSq -> 0.002624671915 | D45: ft3/ft2/da | E45: 800 | F45: mL/m2/da
B46: Permeability of carbon dioxide | C46: =(bgc_perme_CO2ThruPolyEth_MlPerSqMPerDa/1000)*cnv_lToFtCu/cnv_mSqToFtSq -> 0.004921259841 | D46: ft3/ft2/da | E46: 1500 | F46: mL/m2/da
B48: Loss of CH4/da | C48: =bgc_bagSurfaceArea_sqFt*bgc_perme_CH4ThruPolyEth_CuFtPerSqFt -> 3.937007873 | D48: ft3 | E48: =(bgc_bagSurfaceArea_sqM*(bgc_perme_CH4ThruPolyEth_MlPerSqMPerDa))/1000 -> 111.483648 | F48: liters | G48: =E48/1000 -> 0.111483648 | H48: m3 vol
B49: Loss of CO2/da | C49: =bgc_bagSurfaceArea_sqFt*bgc_perme_CO2ThruPolyEth_CuFtPerSqFt -> 7.381889761 | D49: ft3 | E49: =(bgc_bagSurfaceArea_sqM*(bgc_perme_CO2ThruPolyEth_MlPerSqMPerDa))/1000 -> 209.03184 | F49: liters | G49: =E49/1000 -> 0.20903184 | H49: m3 vol
B50: Loss, total biogas/da | C50: =SUM(C48:C49) -> 11.31889763 | D50: ft3 | E50: =SUM(E48:E49) -> 320.515488 | F50: liters | G50: =SUM(G48:G49) -> 0.320515488 | H50: m3 vol
B52: Again: Note that losses are calculated as if the bag were one layer only

Sheet Conversions
A1: Conversions
A2: cnv
B4: Length/Distance
C5: Conversion | D5: cellName | E5: conv# | F5: Units
C6: cm (to in) | D6: cmToIn | E6: 0.3937007874 | F6: in
C7: m (to ft) | D7: mToFt | E7: 3.280839895 | F7: ft
C8: km (to mi) | D8: kmToMi | E8: 0.6213711922 | F8: mi
C9: in (to cm) | D9: inToCm | E9: 2.54 | F9: cm
C10: in (to ft) | D10: inToFt | E10: 0.08333333333 | F10: ft
C11: ft (to yd) | D11: ftToYd | E11: 0.3333333333 | F11: yd
C12: ft (to m) | D12: ftToM | E12: 0.3048 | F12: m
C13: ft (to mi) | D13: ftToMi | E13: 0.0001893939 | F13: mi
C14: mi (to km) | D14: miToKm | E14: 1.609344 | F14: km
B16: Area
C17: Conversion | D17: cellName | E17: conv# | F17: Units
C18: cm2 (to in2) | D18: cmSqToInSq | E18: 0.15500031 | F18: in2
C19: m2 (to ft2) | D19: mSqToFtSq | E19: 10.76391042 | F19: ft2
C20: m2 (to ha) | D20: mSqToHa | E20: 0.0001 | F20: ha
C21: km2 (to ha) | D21: kmSqToHa | E21: 100 | F21: ha
C22: km2 (to acre) | D22: kmSqToAcre | E22: 247.1053815 | F22: acre
C23: km2 (to mi2) | D23: kmSqToMiSq | E23: 0.386102158 | F23: mi2
C24: ha (to acre) | D24: haToAcre | E24: 2.471053816 | F24: acre
C25: ha (to ft2) | D25: haToFtSq | E25: 107639.1042 | F25: ft2
C26: in2 (to cm2) | D26: inSqToCmSq | E26: 6.4516 | F26: cm2
C27: in2 (to ft2) | D27: inSqToFtSq | E27: 0.006944444 | F27: ft2
C28: ft2 (to in2) | D28: ftSqToInSq | E28: 144 | F28: in2
C29: ft2 (to m2) | D29: ftSqToMSq | E29: 0.09290304 | F29: m2
C30: ft2 (to yd2) | D30: ftSqToYdSq | E30: 0.1111111 | F30: yd2
C31: ft2 (to mi2) | D31: ftSqToMiSq | E31: 3.587006428e-08 | F31: mi2
C32: ft2 (to acre) | D32: ftSqToAcre | E32: 2.295684114e-05 | F32: acre
C33: ft2 (to ha) | D33: ftSqToHa | E33: 9.290304e-06 | F33: ha
C34: mi2 (to ft2) | D34: miSqToFtSq | E34: 27878400 | F34: ft2
C35: mi2 (to km2) | D35: miSqToKmSq | E35: 2.58998811 | F35: km2
C36: acre (to ft2) | D36: acreToFtSq | E36: 43560 | F36: ft2
C37: acre (to ha) | D37: acreToHa | E37: 0.404685642 | F37: ha
C38: acre (to km2) | D38: acreToKmSq | E38: 0.004046856 | F38: km2
C39: acre (to mi2) | D39: acreToMiSq | E39: 0.0015625 | F39: mi2
B41: Mass
C42: Conversion | D42: cellName | E42: conv# | F42: Units
C43: gm (to oz) | D43: gmToOz | E43: 0.03527396195 | F43: oz
C44: gm (to lb) | D44: gmToLb | E44: 0.002204622622 | F44: lb
C45: kg (to oz) | D45: kgToOz | E45: 35.27396195 | F45: oz
C46: kg (to lb) | D46: kgToLb | E46: 2.204622622 | F46: lb
C47: kg (to ton) | D47: kgToTon | E47: 0.001102311311 | F47: ton
C48: tonne (to lb) | D48: tonneToLb | E48: 2204.622622 | F48: lb
C49: tonne (to ton) | D49: tonneToTon | E49: 1.102311311 | F49: ton
C50: oz (to gm) | D50: ozToGm | E50: 28.34952313 | F50: gm
C51: oz (to lb) | D51: ozToLb | E51: 0.0625 | F51: lb
C52: oz (to kg) | D52: ozToKg | E52: 0.02834952313 | F52: kg
C53: lb (to gm) | D53: lbToGm | E53: 453.59237 | F53: gm
C54: lb (to oz) | D54: lbToOz | E54: 16 | F54: oz
C55: lb (to kg) | D55: lbToKg | E55: 0.45359237 | F55: kg
C56: lb (to ton) | D56: lbToTon | E56: 0.0005 | F56: ton
C57: lb (to tonne) | D57: lbToTonne | E57: 0.00045359237 | F57: tonne
C58: ton (to lb) | D58: tonToLb | E58: 2000 | F58: lb
C59: ton (to kg) | D59: tonToKg | E59: 907.1847 | F59: kg
C60: ton (to tonne) | D60: tonToTonne | E60: 0.90718474 | F60: tonne
B62: Volume
C63: Conversion | D63: cellName | E63: conv# | F63: Units
C64: cm3 (to ml) | D64: cmCuToMl | E64: 1 | F64: ml
C65: cm3 (to m3) | D65: cmCuToMCu | E65: 1e-06 | F65: m3
C66: cm3 (to in3) | D66: cmCuToInCu | E66: 0.06102374409 | F66: in3
C67: cm3 (to fl oz) | D67: cmCuToFlOz | E67: 0.0338140227 | F67: fl oz
C68: l (to m3) | D68: lToMCu | E68: 0.001 | F68: m3
C69: l (to in3) | D69: lToInCu | E69: 61.02374409 | F69: in3
C70: l (to fl oz) | D70: lToFlOz | E70: 33.8140227 | F70: fl oz
C71: l (to ft3) | D71: lToFtCu | E71: 0.03531466672 | F71: ft3
C72: m3 (to cm3) | D72: mCuToCmCu | E72: 1000000 | F72: cm3
C73: m3 (to in3) | D73: mCuToInCu | E73: 61023.74409 | F73: in3
C74: m3 (to ft3) | D74: mCuToFtCu | E74: 35.31466672 | F74: ft3
C75: m3 (to gal) | D75: mCuToGal | E75: 264.1720524 | F75: gal
C76: m3 (to yd3) | D76: mCuToYdCu | E76: 1.307950619 | F76: yd3
C77: in3 (to cm3) | D77: inCuToCmCu | E77: 16.387064 | F77: cm3
C78: in3 (to fl oz) | D78: inCuToFlOz | E78: 0.5541125541 | F78: fl oz
C79: in3 (to ft3) | D79: inCuToFtCu | E79: 0.0005787037037 | F79: ft3
C80: in3 (to gal) | D80: inCuToGal | E80: 0.004329004329 | F80: gal
C81: fl oz (to cm3) | D81: flOzToCmCu | E81: 29.57352956 | F81: cm3
C82: fl oz (to in3) | D82: flOzToInCu | E82: 1.8046875 | F82: in3
C83: fl oz (to ft3) | D83: flOzToFtCu | E83: 0.001044379 | F83: ft3
C84: fl oz (to gal) | D84: flOzToGal | E84: 0.0078125 | F84: gal
C85: ft3 (to cm3) | D85: ftCuToCmCu | E85: 28316.84659 | F85: cm3
C86: ft3 (to l) | D86: ftCuToL | E86: 28.31684659 | F86: l
C87: ft3 (to m3) | D87: ftCuToMCu | E87: 0.028316847 | F87: m3
C88: ft3 (to in3) | D88: ftCuToInCu | E88: 1728 | F88: in3
C89: ft3 (to gal) | D89: ftCuToGal | E89: 7.480519481 | F89: gal
C90: ft3 (to bu) | D90: ftCuToBu | E90: 0.8035639549 | F90: bu
C91: ft3 (to yd3) | D91: ftCuToYdCu | E91: 0.03703704 | F91: yd3
C92: ft3 (to l) | D92: ftCuToL | E92: 28.31685 | F92: l
C93: ft3 (to m3) | D93: ftCuToMCu | E93: 0.02831685 | F93: m3
C94: gal (to fl oz) | D94: galToFlOz | E94: 128 | F94: fl oz
C95: gal (to l) | D95: galToL | E95: 0.2641720524 | F95: l
C96: gal (to ft3) | D96: galToFtCu | E96: 0.1336805556 | F96: ft3
C97: gal (to m3) | D97: galToMCu | E97: 0.003785411784 | F97: m3
C98: yd3 (to ft3) | D98: ydCuToftCu | E98: 26.99999784 | F98: ft3
B100: Energy units
C101: Conversion | D101: cellName | E101: conv# | F101: Units
C102: kCal (to BTU) | D102: kCalToBtu | E102: 3.968320541 | F102: BTU
C103: kCal (to joules) | D103: kCalToJoules | E103: 4186.8 | F103: joules
C104: joules (to kCal) | D104: joulesToKcal | E104: 0.0002388458966 | F104: kCal
C105: joules (to KwH) | D105: joulesToKwh | E105: 2.777778e-07 | F105: KwH
C106: joules (to BTU) | D106: joulesToBtu | E106: 0.0009478171 | F106: BTU
C107: joules (to therm) | D107: joulesToTherm | E107: 9.478134e-09 | F107: therm
C108: kCal (to Kwh) | D108: kCalToKwh | E108: 0.001163 | F108: Kwh
C109: kCal (to therm) | D109: kCalToTherm | E109: 3.969268224e-05 | F109: therm
C110: BTU (to kCal) | D110: btuToKcal | E110: 0.2519957724 | F110: kCal
C111: BTU (to Kwh) | D111: btuToKwh | E111: 0.0002930710833 | F111: Kwh
C112: BTU (to therm) | D112: btuToTherm | E112: 1.000238767e-05 | F112: therm
C113: Kwh (to kCal) | D113: kwhToKcal | E113: 859.8452279 | F113: kCal
C114: Kwh (to BTU) | D114: kwhToBtu | E114: 3412.14148 | F114: BTU
C115: Kwh (to therm) | D115: kwhToTherm | E115: 0.03412128 | F115: therm
C116: therm (to kCal) | D116: thermToKcal | E116: 25193.56071 | F116: kCal
C117: therm (to BTU) | D117: thermToBtu | E117: 99976.12898 | F117: BTU
C118: therm (to Kwh) | D118: thermToKwh | E118: 29.30011111 | F118: Kwh
B120: Power
C121: Conversion | D121: cellName | E121: conv# | F121: Units
C122: kW (to kCal/sec) | D122: kWToKcalPerSec | E122: 0.2388458966 | F122: kCal/sec
C123: kW (to BTU/sec) | D123: kWToBtuPerSec | E123: 0.9478171209 | F123: BTU/sec
C124: kW (to HP) | D124: kWToHp | E124: 1.341022092 | F124: HP
C125: kCal/sec (to kW) | D125: kCalPerSecToKw | E125: 4.1868 | F125: kW
C126: kCal/sec (to HP) | D126: kCalPerSecToHp | E126: 5.614591297 | F126: HP
C127: BTU/sec (to kW) | D127: btuPerSecToKw | E127: 1.055055852 | F127: kW
C128: BTU/sec (to HP) | D128: btuPerSecToHp | E128: 1.414853206 | F128: HP
C129: HP (to kW) | D129: hpToKw | E129: 0.74569987 | F129: kW
C130: HP (to kCal/sec) | D130: hpToKcalPerSec | E130: 0.1781073541 | F130: kCal/sec
C131: HP (to BTU/sec) | D131: hpToBtuPerSec | E131: 0.7067871038 | F131: BTU/sec
B133: Energy Density (chk*)
C134: Conversion | D134: cellName | E134: conv# | F134: Units
C135: cal l-1 (to kCal m-3) | D135: calPerLToKcalPerMCu | E135: 0.001 | F135: kCal m-3
C136: cal l-1 (to joules m-3) | D136: calPerLToJoulesPerMCu | E136: 4184 | F136: joules m-3
C137: kCal l-1 (to joules m-3) | D137: kCalPerLToJoulesPerMCu | E137: 4184000 | F137: joules m-3
C138: kCal l-1 (to BTU ft-3) | D138: kCalPerLToBtuPerFtCu | E138: 112.2951793 | F138: BTU ft-3
C139: kCal l-1 (to BTU gal-1) | D139: kCalPerLToBtuPerGal | E139: 15.01168195 | F139: BTU gal-1
C140: kCal m-3 (to BTU ft-3) | D140: kCalPerMCuToBtuPerFtCu | E140: 0.1122951793 | F140: BTU ft-3
C141: kCal m-3 (to BTU gal-1) | D141: kCalPerMCuToBtuPerGal | E141: 0.01501168195 | F141: BTU gal-1
C142: joules l-1 (to kCal m-3) | D142: joulesPerLToKcalPerMCu | E142: 0.239005736 | F142: kCal m-3
C143: joules l-1 (to BTU ft-3) | D143: joulesPerLToBtuPerFtCu | E143: 0.02685715995 | F143: BTU ft-3
C144: joules l-1 (to BTU gal-1) | D144: joulesPerLToBtuPerGal | E144: 0.003587877372 | F144: BTU gal-1
C145: joules l-1 (to therm ft-3) | D145: joulesPerLToThermPerFtCu | E145: 3.347171434e-10 | F145: therm ft-3
C146: BTU ft-3 (to kCal l-1) | D146: btuPerFtCuToKcalPerL | E146: 0.00890510177 | F146: kCal l-1
C147: BTU ft-3 (to kCal m-3) | D147: btuPerFtCuToKcalPerMCu | E147: 8.90510177 | F147: kCal m-3
C148: BTU ft-3 (to joules m-3) | D148: btuPerFtCuToJoulesPerMCu | E148: 37258.94581 | F148: joules m-3
C149: therm ft-3 (to kCal m-3) | D149: thermPerFtCuToKcalPerMCu | E149: 889702.2002 | F149: kCal m-3
C150: therm ft-3 (to joules m-3) | D150: thermPerFtCuToJoulesPerMCu | E150: 3725005172 | F150: joules m-3
C151: therm ft-3 (to BTU gal-1) | D151: thermPerFtCuToBtuPerGal | E151: 13368.05556 | F151: BTU gal-1
B153: Density
C154: Conversion | D154: cellName | E154: conv# | F154: Units
C155: gm/cm3 (to kg/m3) | D155: gmPerCmCuToKgPerMCu | E155: 1000 | F155: kg/m3
C156: kg/m3 (to lb/in3) | D156: kgPerMCuToLbPerInCu | E156: 3.6127292e-05 | F156: lb/in3
C157: kg/m3 (to lb/gal) | D157: kgPerMCuToLbPerGal | E157: 0.008345404452 | F157: lb/gal
C158: kg/m3 (to SpGrav (specific gravity)) | D158: kgPerMCuToSpGrav | E158: 0.001 | F158: SpGrav (specific gravity)
C159: lb/ft3 (to kg/m3) | D159: lbPerInCuToKgPerMCu | E159: 16.01846337 | F159: kg/m3
C160: lb/ft3 (to oz/in3) | D160: lbPerFtCuToOzPerInCu | E160: 0.009259259259 | F160: oz/in3
C161: lb/ft3 (to SpGrav) | D161: lbPerFtCuToSpGrav | E161: 62.42718356 | F161: SpGrav
C162: SpGrav (to gm/cm3) | D162: spGravToGmPerCmCu | E162: 1 | F162: gm/cm3
C163: SpGrav (to kg/m3) | D163: spGravToKgPerMCu | E163: 1000 | F163: kg/m3
C164: SpGrav (to oz/in3) | D164: spGravToOzPerInCu | E164: 0.5780294774 | F164: oz/in3
C165: SpGrav (to lb/ft3) | D165: spGravToLbPerFtCu | E165: 0.01601866275 | F165: lb/ft3
C166: SpGrav (to lb/gal) | D166: spGravToLbPerGal | E166: 8.34530058 | F166: lb/gal
B168: Pressure
C169: Conversion | D169: cellName | E169: conv# | F169: Units
C170: atm (to bar) | D170: atmToBar | E170: 1.01325 | F170: bar
C171: atm (to mm Hg) | D171: atmToMmHg | E171: 760.0021002 | F171: mm Hg
C172: atm (to cm H2O) | D172: atmToCmH2o | E172: 1033.227555 | F172: cm H2O
C173: atm (to cm H2O) | D173: atmToFtH2o | E173: 33.89854205 | F173: cm H2O
C174: atm (to MPascal) | D174: atmToMpascal | E174: 0.10132501 | F174: MPascal
C175: atm (to psi) | D175: atmToPsi | E175: 14.69595025 | F175: psi
C176: bar (to atm) | D176: barToAtm | E176: 0.9869232667 | F176: atm
C177: bar (to mm Hg) | D177: barToMmHg | E177: 750.0637554 | F177: mm Hg
C178: bar (to cm H2O) | D178: barToCmH2o | E178: 1019.716213 | F178: cm H2O
C179: bar (to psi) | D179: barToPsi | E179: 14.50377377 | F179: psi
C180: MPascal (to atm) | D180: mPascalToAtm | E180: 9.869231693 | F180: atm
C181: MPascal (to psi) | D181: mPascalToPsi | E181: 145.0377377 | F181: psi
C182: mm Hg (to atm) | D182: mmHgToAtm | E182: 0.001315785838 | F182: atm
C183: mm Hg (to cm H2O) | D183: mmHgToCmH2o | E183: 1.359506047 | F183: cm H2O
C184: cm H2O (to atm) | D184: cmH2oToAtm | E184: 0.0009678410098 | F184: atm
C185: cm H2O (to bar) | D185: cmH2oToBar | E185: 0.000980665 | F185: bar
C186: psi (to atm) | D186: psiToAtm | E186: 0.06804595706 | F186: atm
C187: psi (to bar) | D187: psiToBar | E187: 0.0689475728 | F187: bar
C188: bar (to mm Hg) | D188: barToMmHg | E188: 51.7149241 | F188: mm Hg
C189: psi (to cm H2O) | D189: psiToCmH2o | E189: 70.30695783 | F189: cm H2O
C190: psi (to MPascal) | D190: psiToMpascal | E190: 0.006894757293 | F190: MPascal
B192: Heat Transfer Coefficient
C193: Conversion | D193: cellName | E193: conv# | F193: Units
C194: kCal hr-1 m-2 ºC (to BTU hr-1 ft-2 ºF) | D194: kCalPerHrPerMSqDegCToBtuPerHrPerFtSqDegF | E194: 0.2046791689 | F194: BTU hr-1 ft-2 ºF
C195: BTU hr-1 ft-2 ºF (to kCal hr-1 m-2 ºC) | D195: btuPerHrPerFtSqDegFToKcalPerHrPerMSqDegC | E195: 4.885695041 | F195: kCal hr-1 m-2 ºC
B197: Gas Production (chk*)
C198: Conversion | D198: cellName | E198: conv# | F198: Units
C199: l gm-1 (to ft3 lb-1) | D199: lPerGmToFtCuPerLb | E199: 16.0184625 | F199: ft3 lb-1
C200: l gm-1 (to m3 kg-1) | D200: lPerGmToMCuPerKg | E200: 1 | F200: m3 kg-1
C201: l gm-1 (to m3 t-1) | D201: lPerGmToMCuPerTonne | E201: 1000 | F201: m3 t-1
C202: l kg-1 (to ft3 lb-1) | D202: lPerKgToFtCuPerLb | E202: 0.0160184625 | F202: ft3 lb-1
C203: l kg-1 (to m3 t-1) | D203: lPerKgToMCuPerTonne | E203: 1 | F203: m3 t-1
C204: m3 kg-1 (to ft3 lb-1) | D204: mCuPerKgTo | E204: 16.0184625 | F204: ft3 lb-1
C205: m3 kg-1 (to m3 t-1) | D205: mCuPerKgToMCuPerTonne | E205: 0.001 | F205: m3 t-1
C206: ft3 lb-1 (to yd3 ton-1) | D206: ftCuPerLbToYdCuPerTon | E206: 74.07408 | F206: yd3 ton-1
C207: ft3 lb-1 (to l gm-1) | D207: ftCuPerLbToLPerGm | E207: 0.06242796058 | F207: l gm-1
C208: ft3 lb-1 (to l kg-1) | D208: ftCuPerLbToLPerKg | E208: 62.42796058 | F208: l kg-1
C209: ft3 lb-1 (to m3 kg-1) | D209: ftCuPerLbToMCuPerKg | E209: 0.06242796058 | F209: m3 kg-1
C210: ft3 lb-1 (to m3 t-1) | D210: ftCuPerLbToMCuPerTonne | E210: 62.42796058 | F210: m3 t-1
C211: yd3 ton-1 (to ft3 lb-1) | D211: ydCuPerLbToFtCuPerLb | E211: 0.0135 | F211: ft3 lb-1
... 15 more rows
